Cogmind - Beta 13 @@@ ROGUE MODE // 2024.04.23 @ 00:51:14 Player: ThatBishHoly Result: Destroyed by B-36 Bruiser with Hammer Performance ------------- Evolutions (2) 1000 Regions Visited (5) 1000 Robots Destroyed (15) 75 Value Destroyed (274) 274 Prototype IDs (1) 20 Alien Tech Used (0) 0 Bonus (300) 300 TOTAL SCORE: 2669 Bonus ------- Aligned with FarCom 300 Cogmind --------- Core Integrity 0/550 Matter 245/300 Energy 100/100 System Corruption 0% Temperature Cool (0) Movement Walking (45) Location -8/Materials Parts ------- > --- POWER (2) -------- (None) > --- PROPULSION (4) --- Potential Leg > --- UTILITY (2) ------ Signal Interpreter Melee Analysis Suite > --- WEAPON (3) ------- (None) > --- INVENTORY (5) ---- Recoil Stabilizer Peak State ------------ > --- POWER ------------ Light Ion Engine > --- PROPULSION ------- Potential Leg Potential Leg > --- UTILITY ---------- Compact Matter Pod Light Armor Plating > --- WEAPON ----------- Light Cannon Grenade Launcher Rocket Launcher > --- INVENTORY -------- High-capacity Matter Pod Signal Interpreter Light Cannon [Rating: 29] Favorites ----------- Power Light Ion Engine Engine Light Ion Engine Power Core Light Nuclear Core Propulsion Aluminum Leg Leg Aluminum Leg Wheel Compact Wheel Utility Light Armor Plating Storage High-capacity Matter Pod Processor Signal Interpreter Protection Light Armor Plating Weapon Light Cannon Ballistic Gun Light Assault Rifle Ballistic Cannon Light Cannon Launcher Grenade Launcher Build | -11 -10 -10 -10 -9 -8 ------- Run | Yrd Mat Min Exi Min Mat Slots Evolved 4 | . . . . . 4 Power 1 | . . . . . 1 Propulsion 2 | . . . . . 2 Utility . | . . . . . . Weapon 1 | . . . . . 1 Parts Attached 24 | 7 4 . 3 1 9 Power 2 | 1 . . . . 1 Engine 1 | 1 . . . . . Core 1 | . . . . . 1 Reactor . | . . . . . . Propulsion 7 | 4 . . 2 . 1 Treads . | . . . . . . Leg 5 | 2 . . 2 . 1 Wheel 2 | 2 . . . . . Hover . | . . . . . . Flight . | . . . . . . Utility 5 | . 2 . . . 3 Device . | . . . . . . Storage 2 | . 1 . . . 1 Processor 2 | . . . . . 2 Hackware . | . . . . . . Protection 1 | . 1 . . . . Artifact . | . . . . . . Weapon 10 | 2 2 . 1 1 4 Energy Gun . | . . . . . . Energy Cannon . | . . . . . . Ballistic Gun 2 | 2 . . . . . Ballistic Cannon 4 | . 2 . . . 2 Launcher 4 | . . . 1 1 2 Special Weapon . | . . . . . . Impact Weapon . | . . . . . . Slashing Weapon . | . . . . . . Piercing Weapon . | . . . . . . Special Melee Weapon . | . . . . . . Unidentified Prototypes 1 | . . . 1 . . Parts Lost 9 | . . . . . 9 Power 2 | . . . . . 2 Propulsion 2 | . . . . . 2 Utility 2 | . . . . . 2 Weapon 3 | . . . . . 3 Highest Loss Streak 5 | . . . . . 5 To Critical Strikes . | . . . . . . Average Slot Usage (%) 83 | . 89 100 100 100 50 Engine 11 | . 14 14 14 14 4 Leg 24 | . 28 28 28 28 18 Storage 11 | . 12 14 14 14 7 Protection 10 | . 6 14 14 14 4 Ballistic Cannon 19 | . 25 28 28 6 4 Launcher 4 | . . . . 22 8 Naked Turns . | . . . . . . Heaviest Build 20 | 5 16 16 16 17 20 Greatest Support 70 | 26 20 20 60 60 70 Greatest Overweight (x) . | . . . . . . Average Overweight (x) . | . . . . . . Largest Inventory Capacity 5 | 5 5 5 5 5 5 Average Capacity 5 | 5 5 5 5 5 5 Most Carried 5 | 4 2 2 4 3 5 Average Carried 2 | . 1 2 2 2 2 Final Capacity 5 | 5 5 5 5 5 5 Final Carried 3 | . 2 2 2 3 1 Class Distribution -------------------- 87% | Mutant 12% | Skirmisher Dominant Class ---------------- Mutant | -10/Materials Mutant | -10/Mines Mutant | -10/Exiles Mutant | -9/Mines Mutant | -8/Materials Resources | -11 -10 -10 -10 -9 -8 ----------- Run | Yrd Mat Min Exi Min Mat Matter Collected 428 | 197 . 22 . . 209 Remotely . | . . . . . . Salvage Created 204 | . . 13 . . 191 Parts 26 | . . 4 . . 22 Haulers Intercepted . | . . . . . . Recyclers Shooed 1 | . . 1 . . . Parts Field Recycled . | . . . . . . Retrieved Matter . | . . . . . . Parts Self-Destructed . | . . . . . . Prevented . | . . . . . . Kills | -11 -10 -10 -10 -9 -8 ------- Run | Yrd Mat Min Exi Min Mat Combat Hostiles Destroyed 7 | . . 3 . . 4 Cannons 3 | . . 3 . . . AOE 4 | . . . . . 4 Classes Destroyed 5 | . . 1 . . 4 Builder 6 | . . . . . 6 Tunneler 1 | . . . . . 1 Recycler 1 | . . . . . 1 Swarmer 3 | . . 3 . . . Grunt 4 | . . . . . 4 Best Kill Streak 10 | . . 3 . . 10 Combat Bots Only 3 | . . 3 . . 2 Max Kills in Single Turn 5 | . . 1 . . 5 Gunslinging . | . . . . . . Exploded 2 | . . . . . 2 Melee . | . . . . . . Uniques/NPCs Destroyed . | . . . . . . Combat | -11 -10 -10 -10 -9 -8 -------- Run | Yrd Mat Min Exi Min Mat Hostile Shots Fired 185 | . 14 15 . . 156 Missed 64 | . 7 . . . 57 Damage Taken 1888 | . 69 116 . . 1703 Core 606 | . 31 22 . . 553 Absorbed by Shields . | . . . . . . Core Remaining (%) 89 | 100 . . . 78 . Volleys Fired 13 | . . 6 . . 7 Largest 3 | . . 2 . . 3 Hottest 98 | . . 70 . . 98 Shots Fired 29 | . . 12 . . 17 Gun . | . . . . . . Cannon 19 | . . 12 . . 7 Launcher 10 | . . . . . 10 Special . | . . . . . . Kinetic 19 | . . 12 . . 7 Thermal . | . . . . . . Explosive 10 | . . . . . 10 Electromagnetic . | . . . . . . Robot Hit Streak 9 | . . 3 . . 9 Robot Miss Streak 3 | . . 3 . . 2 Penetration Max . | . . . . . . Secondary Targets . | . . . . . . Shots Hit Robots 18 | . . 5 . . 13 Core Hits 41 | . . 2 . . 39 Critical Kills . | . . . . . . Critical Parts Destroyed . | . . . . . . Critical Strikes 1 | . . 1 . . . Blast 1 | . . 1 . . . Melee Attacks . | . . . . . . Impact . | . . . . . . Slashing . | . . . . . . Piercing . | . . . . . . Sneak Attacks . | . . . . . . Combat Hostiles . | . . . . . . Follow-up Attacks . | . . . . . . Damage Inflicted 1500 | . . 140 . . 1360 Guns . | . . . . . . Cannons 244 | . . 140 . . 104 Explosions 1164 | . . . . . 1164 Melee . | . . . . . . Ramming 92 | . . . . . 92 Kinetic 244 | . . 140 . . 104 Thermal . | . . . . . . Explosive 1164 | . . . . . 1164 Electromagnetic . | . . . . . . Impact . | . . . . . . Slashing . | . . . . . . Piercing . | . . . . . . Highest Corruption . | . . . . . . Average Corruption . | . . . . . . Corruption Purged . | . . . . . . Corruption Blocked . | . . . . . . Overload Shots . | . . . . . . Overflow Damage 23 | . . 8 . . 15 Projectiles 8 | . . 8 . . . Explosions 15 | . . . . . 15 Melee . | . . . . . . Knockbacks 3 | . . 1 . . 2 Impact . | . . . . . . Kinetic 3 | . . 1 . . 2 Secondary . | . . . . . . Self-Inflicted Damage 207 | . . . . . 207 Shots 7 | . . . . . 7 Rammed . | . . . . . . Targets Rammed 25 | . . . . . 25 Kicked 25 | . . . . . 25 Crushed . | . . . . . . Highest Temperature 108 | . . 108 . . 55 Average Temperature 39 | . . 54 . . 25 Received Heat Transfer 549 | . 9 . . . 540 Siege Activations . | . . . . . . Robots Corrupted . | . . . . . . Combat Hostiles . | . . . . . . Parts Fried . | . . . . . . Impact Corruptions . | . . . . . . Robots Melted . | . . . . . . Combat Hostiles . | . . . . . . Parts Melted . | . . . . . . Heat Transferred . | . . . . . . Parts Sabotaged . | . . . . . . Parts Stolen . | . . . . . . Parts Stripped . | . . . . . . Power Chain Reactions . | . . . . . . Alert | -11 -10 -10 -10 -9 -8 ------- Run | Yrd Mat Min Exi Min Mat Peak Influence 265 | . 5 86 . . 265 Initial 1 | . . 1 . . . Average 67 | . 3 49 . . 124 Maximum Alert Level 1 | . . . . . 1 Low Security (%) 82 | 100 100 100 . 100 61 Level 1 17 | . . . . . 38 Level 2 . | . . . . . . Level 3 . | . . . . . . Level 4 . | . . . . . . Level 5 . | . . . . . . High Security . | . . . . . . Max Security . | . . . . . . Squads Dispatched 2 | . . . . . 2 Investigation 1 | . . . . . 1 Extermination . | . . . . . . Reinforcement 1 | . . . . . 1 Assault . | . . . . . . Garrison . | . . . . . . Intercept . | . . . . . . Searches Triggered . | . . . . . . Construction Impeded 1 | . . . . . 1 Haulers Reinforced . | . . . . . . Active Scanning Responses . | . . . . . . Cargo Convoy Interrupts . | . . . . . . Stealth | -11 -10 -10 -10 -9 -8 --------- Run | Yrd Mat Min Exi Min Mat Distress Signals 3 | . . . . . 3 Communications Jammed . | . . . . . . Distress Signals . | . . . . . . Times Spotted 34 | . 5 3 . . 26 Peak Tracking Total 11 | . 5 3 . . 11 Tactical Retreats 3 | . . . . . 3 Traps | -11 -10 -10 -10 -9 -8 ------- Run | Yrd Mat Min Exi Min Mat Traps Triggered . | . . . . . . Indirectly . | . . . . . . Trap Hack Attempts . | . . . . . . Triggered . | . . . . . . Disarmed . | . . . . . . Reprogrammed 1 | . . . . . 1 Reused . | . . . . . . Traps Extracted . | . . . . . . Installed . | . . . . . . Triggered . | . . . . . . Machines | -11 -10 -10 -10 -9 -8 ---------- Run | Yrd Mat Min Exi Min Mat Machines Disabled 1 | . . . . . 1 Max in Single Turn 1 | . . . . . 1 Machines Repaired . | . . . . . . Machines Dismantled . | . . . . . . Machines Sabotaged . | . . . . . . Overloaded Fab Kills . | . . . . . . Hacking | -11 -10 -10 -10 -9 -8 --------- Run | Yrd Mat Min Exi Min Mat Machines Accessed 3 | . 1 . 1 . 1 Terminals 2 | . 1 . . . 1 Fabricators . | . . . . . . Repair Stations . | . . . . . . Recycling Units . | . . . . . . Scanalyzers . | . . . . . . Garrison Access . | . . . . . . Total Hacks 7 | . 1 . 2 . 4 Successful 5 | . 1 . 2 . 2 Failed 2 | . . . . . 2 Catastrophic . | . . . . . . Database Lockouts . | . . . . . . Manual 1 | . . . 1 . . Terminals 5 | . 1 . . . 4 Fabricators . | . . . . . . Repair Stations . | . . . . . . Recycling Units . | . . . . . . Scanalyzers . | . . . . . . Garrison Access . | . . . . . . Terminal Hacks 5 | . 1 . 2 . 2 Record 2 | . . . 2 . . Robot Analysis 1 | . . . . . 1 Reprogram Traps 1 | . . . . . 1 Zone Layout 1 | . 1 . . . . Fabricator Hacks . | . . . . . . Repair Station Hacks . | . . . . . . Recycling Unit Hacks . | . . . . . . Scanalyzer . | . . . . . . Garrison Access Hacks . | . . . . . . Unauthorized Hacks . | . . . . . . Terminals . | . . . . . . Fabricators . | . . . . . . Repair Stations . | . . . . . . Recycling Units . | . . . . . . Scanalyzers . | . . . . . . Garrison Access . | . . . . . . Data Cores Recovered . | . . . . . . Used . | . . . . . . Hacking Detections 1 | . . . . . 1 Full Trace Events 1 | . . . . . 1 Feedback Events . | . . . . . . Feedback Blocked . | . . . . . . Robot Schematics Acquired . | . . . . . . Robots Built . | . . . . . . Authchips . | . . . . . . Time . | . . . . . . Total Robot Build Rating . | . . . . . . Part Schematics Acquired . | . . . . . . Parts Built . | . . . . . . Authchips . | . . . . . . Time . | . . . . . . Total Part Build Rating . | . . . . . . Parts Repaired . | . . . . . . Time . | . . . . . . Parts Recycled . | . . . . . . Recycled Matter . | . . . . . . Retrieved Matter . | . . . . . . Retrieved Components . | . . . . . . Parts Scanalyzed . | . . . . . . Part Schematics Acquired . | . . . . . . Parts Damaged . | . . . . . . Bothacking | -11 -10 -10 -10 -9 -8 ------------ Run | Yrd Mat Min Exi Min Mat Used RIF Installer . | . . . . . . Robots Hacked . | . . . . . . Non-combat . | . . . . . . Combat . | . . . . . . Robot Hacks Applied . | . . . . . . Relay Couplers Released . | . . . . . . Fabnet Peak Effective % . | . . . . . . Robots Rewired . | . . . . . . Allies Hacked . | . . . . . . Hacks Repelled . | . . . . . . Allies | -11 -10 -10 -10 -9 -8 -------- Run | Yrd Mat Min Exi Min Mat Total Allies 2 | . . 2 . . . Largest Group 2 | . . 2 2 . . Highest-Rated Group 38 | . . 38 38 . . Highest-Rated Ally 31 | . . 31 31 . . Total Orders . | . . . . . . Ally Attacks . | . . . . . . Total Damage . | . . . . . . Kills . | . . . . . . Allies Corrupted . | . . . . . . Allies Melted . | . . . . . . Intel | -11 -10 -10 -10 -9 -8 ------- Run | Yrd Mat Min Exi Min Mat Robot Analysis Total 1 | . . . . . 1 Derelict Logs Recovered 3 | . . 2 . 1 . Drone Launches . | . . . . . . Drone Recoveries . | . . . . . . Exploration | -11 -10 -10 -10 -9 -8 ------------- Run | Yrd Mat Min Exi Min Mat Turns Passed 1119 | 63 111 122 430 71 322 Spaces Moved 1025 | 51 84 87 378 77 348 Core 19 | 19 . . . . . Treads . | . . . . . . Legs 993 | 19 84 87 378 77 348 Wheels 13 | 13 . . . . . Hover . | . . . . . . Flight . | . . . . . . Fastest Speed 45 | 50 120 120 90 90 45 Average Speed 95 | 86 120 120 111 90 68 Slowest Speed 120 | 120 120 120 120 90 90 Overloaded Moves 218 | . . . . . 218 Propulsion Burnouts . | . . . . . . Robots Hopped . | . . . . . . Cave-ins Triggered . | . . . . . . Exploration Rate (%) 28 | 4 20 25 70 27 24 Regions Visited 5 Branch Regions 3 Pre-discovered Areas . | . . . . . . Known Exits Taken 1 | . . . . 1 . Unknown Exits Taken 4 | 1 1 1 1 . . Scrap Searched . | . . . . . . Spaces Dug . | . . . . . . Terrain Destroyed 62 | . . . . . 62 Melee . | . . . . . . Projectile . | . . . . . . AOE 62 | . . . . . 62 Terrain Rammed . | . . . . . . Walls Destroyed . | . . . . . . Machines Disabled . | . . . . . . Actions | -11 -10 -10 -10 -9 -8 --------- Run | Yrd Mat Min Exi Min Mat Total 1141 | 71 94 92 387 78 419 Wait 21 | . . . . . 21 Move 1020 | 50 83 86 377 76 348 Hop . | . . . . . . Pick Up 23 | 9 6 . 3 1 4 Fast Attach 1 | . . . . . 1 Attach 16 | 5 4 . . . 7 Detach 3 | . . . . . 3 Swap 7 | 2 . . 3 1 1 Drop 11 | 5 1 . 3 . 2 Fire 13 | . . 6 . . 7 Melee . | . . . . . . Ram . | . . . . . . Kick 25 | . . . . . 25 Crush . | . . . . . . Escape Stasis . | . . . . . . Rewire 1 | . . . 1 . . Trap . | . . . . . . Miscellaneous . | . . . . . . Route ------- -11/Scrapyard -10/Materials -10/Mines (discovered 2 exits: [*Mat] / *Exi) -10/Exiles -9/Mines -8/Materials History --------- Turn | Location | Event 9 | -11/Scrapyard | Discovered new exit (range 16) 64 | -11/Scrapyard | Entered Materials 154 | -10/Materials | Discovered new exit (range 16) 175 | -10/Materials | Entered Mines 191 | -10/Mines | Learned 2 Materials zone layouts 246 | -10/Mines | Discovered new exit (range 14) 279 | -10/Mines | Learned Materials security intel 288 | -10/Mines | Deemed a non-threat by the Exiles lab entrance 289 | -10/Mines | Discovered new exit (range 5) 297 | -10/Mines | Entered Exiles 297 | -10/Exiles | Accompanied by 2 allies 300 | -10/Exiles | Build established: Mutant 327 | -10/Exiles | Led the pair of lost Derelicts to a safe place 339 | -10/Exiles | Met 8R-AWN 378 | -10/Exiles | Met EX-HEX 435 | -10/Exiles | Met EX-DEC 541 | -10/Exiles | Met EX-BIN 574 | -10/Exiles | Aligned with FarCom system 576 | -10/Exiles | Given EX-Vault access code 612 | -10/Exiles | Opened EX-Vault 618 | -10/Exiles | Found Prototype Leg 619 | -10/Exiles | Identified Potential Leg 621 | -10/Exiles | Found Potential Leg 643 | -10/Exiles | Warned to stay clear of 0b10 Research branches 716 | -10/Exiles | Discovered new exit (range 12) 727 | -10/Exiles | Left Exiles lab with Potential Leg 727 | -10/Exiles | Entered Mines 740 | -9/Mines | Identified exit to Materials 754 | -9/Mines | Received a Rocket Launcher from a helpful Derelict 798 | -9/Mines | Entered Materials 798 | -8/Materials | Evolved 4 slots: Power x1, Propulsion x2, Weapon x1 1026 | -8/Materials | Core integrity fell below 50% 1071 | -8/Materials | Lost 5 parts (1p1n3w) 1111 | -8/Materials | Core integrity fell below 20% 1120 | -8/Materials | Destroyed by B-36 Bruiser with Hammer Last Messages --------------- 01040_ Potential Leg destroyed. 01041_ K-01 Serf cleans the Matter Pump. 01045_ K-01 Serf collects debris. 01047_ The unstable cave ceiling collapses. 01079_ Com. Matter Pod destroyed. 01083_ M-13 Machinist repairs H-55 Commando. 01085_ Slug penetrates Wall. 01098_ Acquired Melee Analysis Suite. 01109_ Kicked G-47 Trooper. 01110_ Kicked G-47 Trooper out of the way. 01110_ Slug penetrates Hadron Collector. 01111_ Kicked G-47 Trooper. 01112_ Kicked G-47 Trooper out of the way. 01112_ Aluminum Leg destroyed. 01114_ Kicked B-36 Bruiser. 01116_ Kicked B-36 Bruiser out of the way. 01117_ Penetrated by Slug. 01117_ Kicked H-55 Commando. 01117_ M-13 Machinist repairs G-47 Trooper. 01118_ Kicked H-55 Commando. Map ----- +----------------------------------------------------+ | ????????????????????# ! % # | | ????????????????????# ! ## | | ????????????????????# """ """ """ %# # # | | ????????????????????# """ """ """ "# ## | | ???????????########## """ """ """ ####? | | ???????????#! # ###???? | | ???????????# """" # # ####?????? | | ???????????# """"" # ] """ # #????????? | | ????????#### """"" # w """ # #????????? | | ????????#"S """" !! """ # #????????? | | ????????#""" " % # !! # #????????? | | ????????# "" "" !# ! # #????????? | | ????????#### "% ########### ##+#######??? | | ???????????# [= [% #? ! ??#w # #??? | | ???????????#### #? """ # # """"" #??? | | ??????????????### # """ / + """"" #??? | | ????????????????### ## """ # # """"" #### | | ?????????????????? #?? ""??# # !# ! | | ?????????????????#####+#?? ""??# # """"" # | | ??????????????????????????? ???# # """"" # ! | | ??????????????????????????? ???# # """"" !# | | ???????????????????????????^ ???# # ?# "" | | ???????????????????????????#+#???# #####????# "" | | ????????????????############ #???# #????????# "" | | ????????????????# gb## #???# #????????# | | ????????????????# """g" "@## ##### ############# | | ????????????????# """ ""mh# | | ????????????????# """ "" + | | ????????????????# """ """ # | | ????????????????# ######################## | | ????????????????# #??????????????????????? | | ????????????????#! ! #??????????????????????? | | ????????????????###########??????????????????????? | | ?????????????????????????????????????????????????? | | | | | | | | | | | | | | | | | | | | | | | | | | | | | | | | | +----------------------------------------------------+ Best States ------------- Heat Dissipation 31 Energy Generation 10 Energy Capacity 125 Matter Stores 241 Matter Capacity 500 Sight Range 16 Terrain Scan Density 10 Armor Coverage 150 Evasion (%) 66 Melee Accuracy 5 Item Schematics ----------------- None Robot Schematics ------------------ None Fabricated ------------ Nothing Alien Tech Used ----------------- None Achievements -------------- None Challenges ------------ None Game ------ Seed TransportModifiedWell Manual? 0 Play Time 00:19:11 Cumulative 16.4 hours Start 2024.04.23 @ 00:34:49 End 2024.04.23 @ 00:51:14 Sessions 1 Manual Loads 0 Difficulty Rogue Special Mode None Game No. 47 Rogue 47 Adventurer 0 Explorer 0 Win Type - Total 0 Types 0/0/0/0/0/0/0/0/0 Lore% 13 Gallery% 28 Achievement% 21 Wizard Run 0 Options --------- Layout 1 ASCII 0 Keyboard 0 Movement Arrows Keybinds 0 Fullscreen 1 Font 16/SmallcapsGlow Map View 25x20 Zoom Use 100% Tactical HUD 1 Map Filters NONE Filters NONE Steam SD RUN: c2492fc1-c527-472b-ac74-b111df816455